fUSD/lending_fUSD_20250521
["ID","MTS","AMOUNT","RATE_DAILY","PERIOD"]
[361812874,1747823496646,-447.9,0.00033698,5]
[361812875,1747823496655,-420.0,0.00033698,5]
[361812876,1747823496665,-1324.88,0.00033698,5]
[361812877,1747823496675,-2229.66,0.00033698,5]
[361812878,1747823496684,-472.1,0.00033698,5]
[361812879,1747823496879,-420.0,0.00033698,5]
[361812880,1747823496892,-434.93,0.00033698,5]
[361812881,1747823496902,-420.0,0.00033698,5]
[361812882,1747823496912,-1282.33,0.00033698,5]
[361812883,1747823496923,-420.0,0.00033698,5]
[361812884,1747823496934,-2643.47,0.00033698,5]
[361812885,1747823496945,-444.34,0.00033698,5]
[361812886,1747823496955,-420.0,0.00033698,5]
[361812887,1747823496965,-420.0,0.00033698,5]
[361812888,1747823496975,-1343.09,0.00033698,5]
[361812889,1747823496985,-600.65,0.00033698,5]
[361812890,1747823496998,-1076.93,0.00033698,5]
[361812891,1747823497008,-420.0,0.00033698,5]
[361812892,1747823497020,-1416.84,0.00033698,5]
[361812893,1747823497030,-1332.5,0.00033698,5]
[361812894,1747823497042,-1392.97,0.00033698,5]
[361812895,1747823497053,-682.19,0.00033698,5]
[361812896,1747823497063,-420.0,0.00033698,5]
[361812897,1747823497074,-438.34,0.00033698,5]
[361812898,1747823497085,-420.0,0.00033698,5]
[361812899,1747823497095,-791.4,0.00033698,5]
[361812900,1747823497104,-1000.0,0.00033698,30]
[361812901,1747823497115,-632.83,0.00033698,5]
[361812902,1747823497124,-420.0,0.00033698,5]
[361812903,1747823497135,-420.0,0.00033698,5]
[361812904,1747823497144,-713.78,0.00033698,5]
[361812905,1747823497154,-420.0,0.00033698,5]
[361812906,1747823497164,-2568.63,0.00033698,5]
[361812907,1747823497174,-420.0,0.00033698,5]
[361812908,1747823497184,-420.0,0.00033698,5]
[361812909,1747823497194,-1222.57,0.00033698,5]
[361812910,1747823497205,-475.50737482,0.00033698,5]
[361812911,1747823497215,-420.0,0.00033698,5]
[361812912,1747823497226,-420.0,0.00033698,5]
[361812913,1747823497237,-1185.11,0.00033698,5]
[361812914,1747823497247,-420.0,0.00033698,5]
[361812915,1747823497257,-3400.95,0.00033698,5]
[361812916,1747823497267,-456.34320295,0.00033698,5]
[361812917,1747823497277,-618.99,0.00033698,5]
[361812918,1747823497288,-559.3,0.00033698,5]
[361812919,1747823497299,-2592.87,0.00033698,5]
[361812920,1747823497309,-420.0,0.00033698,5]
[361812921,1747823497319,-729.48,0.00033698,5]
[361812922,1747823497329,-1036.77,0.00033698,5]
[361812923,1747823497340,-420.0,0.00033698,5]
[361812924,1747823497351,-912.69,0.00033698,5]
[361812925,1747823497365,-2077.17,0.00033698,5]
[361812926,1747823497376,-474.23,0.00033698,5]
[361812927,1747823497386,-633.02,0.00033698,5]
[361812928,1747823497396,-2143.32,0.00033698,5]
[361812929,1747823497407,-420.0,0.00033698,5]
[361812930,1747823497417,-2433.64,0.00033698,5]
[361812931,1747823497427,-2156.45,0.00033698,5]
[361812932,1747823497438,-680.33,0.00033698,5]
[361812933,1747823497447,-420.0,0.00033698,5]
[361812934,1747823497457,-1587.63,0.00033698,5]
[361812935,1747823497467,-3338.68,0.00033698,5]
[361812936,1747823497477,-420.0,0.00033698,5]
[361812937,1747823497486,-420.0,0.00033698,5]
[361812938,1747823497496,-2132.67,0.00033698,5]
[361812939,1747823497505,-539.66,0.00033698,5]
[361812940,1747823497515,-1108.21,0.00033698,5]
[361812941,1747823497525,-420.0,0.00033698,5]
[361812942,1747823497535,-1448.56,0.00033698,5]
[361812943,1747823497547,-1231.09,0.00033698,5]
[361812944,1747823497557,-1449.81,0.00033698,5]
[361812945,1747823497567,-420.0,0.00033698,5]
[361812946,1747823497576,-2507.82,0.00033698,5]
[361812947,1747823497587,-461.55,0.00033698,5]
[361812948,1747823497597,-420.0,0.00033698,5]
[361812949,1747823497606,-2269.59,0.00033698,5]
[361812950,1747823497616,-3289.43,0.00033698,5]
[361812951,1747823497626,-1017.25,0.00033698,5]
[361812952,1747823497636,-420.0,0.00033698,5]
[361812953,1747823497646,-1196.46,0.00033698,5]
[361812954,1747823497656,-420.0,0.00033698,5]
[361812955,1747823497666,-420.0,0.00033698,5]
[361812956,1747823497676,-1902.38,0.00033698,5]
[361812957,1747823497686,-4528.11,0.00033698,5]
[361812958,1747823497696,-420.0,0.00033698,5]
[361812959,1747823497706,-437.58,0.00033698,5]
[361812960,1747823497716,-2709.01,0.00033698,5]
[361812961,1747823497726,-934.68,0.00033698,5]
[361812962,1747823497736,-3000.52,0.00033698,5]
[361812963,1747823497747,-644.31,0.00033698,5]
[361812964,1747823497757,-420.0,0.00033698,5]
[361812965,1747823497768,-919.21,0.00033698,5]
[361812966,1747823497777,-2558.61,0.00033698,5]
[361812967,1747823497787,-420.0,0.00033698,5]
[361812968,1747823497797,-420.0,0.00033698,5]
[361812969,1747823497807,-3800.75,0.00033698,5]
[361812970,1747823497818,-1016.83,0.00033698,5]
[361812971,1747823497829,-420.0,0.00033698,5]
[361812972,1747823497839,-420.0,0.00033698,5]
[361812973,1747823497848,-420.0,0.00033698,5]
[361812974,1747823497858,-1283.86,0.00033698,5]
[361812975,1747823497868,-5012.54,0.00033698,5]
[361812976,1747823497878,-420.0,0.00033698,5]
[361812977,1747823497889,-4257.36,0.00033698,5]
[361812978,1747823497899,-420.0,0.00033698,5]
[361812979,1747823497908,-420.0,0.00033698,5]
[361812980,1747823497918,-420.0,0.00033698,5]
[361812981,1747823497928,-2661.46,0.00033698,5]
[361812982,1747823497937,-420.0,0.00033698,5]
[361812983,1747823497947,-420.0,0.00033698,5]
[361812984,1747823497958,-420.0,0.00033698,5]
[361812985,1747823497968,-7175.57,0.00033698,5]
[361812986,1747823497978,-420.0,0.00033698,5]
[361812987,1747823497988,-1626.84,0.00033698,5]
[361812988,1747823497999,-420.0,0.00033698,5]
[361812989,1747823498009,-7478.95,0.00033698,5]
[361812990,1747823498019,-1297.42,0.00033698,5]
[361812991,1747823498030,-1050.66,0.00033698,5]
[361812992,1747823498040,-420.0,0.00033698,5]
[361812993,1747823498050,-3186.22,0.00033698,5]
[361812994,1747823498060,-459.54,0.00033698,5]
[361812995,1747823498069,-1603.59,0.00033698,5]
[361812996,1747823498080,-420.0,0.00033698,5]
[361812997,1747823498090,-1706.72,0.00033698,5]
[361812998,1747823498100,-1118.07,0.00033698,5]
[361812999,1747823498110,-1819.17,0.00033698,5]
[361813000,1747823498120,-3456.53,0.00033698,5]
[361813001,1747823498130,-420.0,0.00033698,5]
[361813002,1747823498140,-477.62,0.00033698,5]
[361813003,1747823498150,-500.47,0.00033698,5]
[361813004,1747823498159,-1245.18,0.00033698,5]
[361813005,1747823498169,-485.82,0.00033698,5]
[361813006,1747823498179,-864.67,0.00033698,5]
[361813007,1747823498189,-1044.28,0.00033698,5]
[361813008,1747823498199,-2279.99,0.00033698,5]
[361813009,1747823498210,-483.53,0.00033698,5]
[361813010,1747823498220,-420.0,0.00033698,5]
[361813011,1747823498230,-420.0,0.00033698,5]
[361813012,1747823498240,-1093.42,0.00033698,5]
[361813013,1747823498251,-773.61,0.00033698,5]
[361813014,1747823498261,-1587.6,0.00033698,5]
[361813015,1747823498272,-2000.0,0.00033698,5]
[361813016,1747823498282,-478.74,0.00033698,5]
[361813017,1747823498292,-445.05732624,0.00033698,5]
[361813018,1747823498303,-3023.35,0.00033698,5]
[361813019,1747823498314,-2681.61,0.00033698,5]
[361813020,1747823498324,-420.0,0.00033698,5]
[361813021,1747823498334,-3921.51,0.00033698,5]
[361813022,1747823498344,-420.0,0.00033698,5]
[361813023,1747823498354,-774.74,0.00033698,5]
[361813024,1747823498366,-420.0,0.00033698,5]
[361813025,1747823498378,-11832.32,0.00033698,5]
[361813026,1747823498388,-1140.49,0.00033698,5]
[361813027,1747823498398,-716.85,0.00033698,5]
[361813028,1747823498408,-1451.14,0.00033698,5]
[361813029,1747823498420,-4169.63,0.00033698,5]
[361813030,1747823498429,-1980.16,0.00033698,5]
[361813031,1747823498439,-614.3,0.00033698,5]
[361813032,1747823498449,-1064.83,0.00033698,5]
[361813033,1747823498459,-1031.8,0.00033698,5]
[361813034,1747823498469,-2328.19,0.00033698,5]
[361813035,1747823498480,-420.0,0.00033698,5]
[361813036,1747823498491,-2178.09,0.00033698,5]
[361813037,1747823498502,-595.22,0.00033698,5]
[361813038,1747823498512,-420.0,0.00033698,5]
[361813039,1747823498522,-12779.36,0.00033698,5]
[361813040,1747823498533,-3199.69,0.00033698,5]
[361813041,1747823498543,-420.0,0.00033698,5]
[361813042,1747823498554,-464.93,0.00033698,5]
[361813043,1747823498565,-1385.93,0.00033698,5]
[361813044,1747823498575,-3624.48,0.00033698,5]
[361813045,1747823498586,-1592.89,0.00033698,5]
[361813046,1747823498595,-420.0,0.00033698,5]
[361813047,1747823498606,-420.0,0.00033698,5]
[361813048,1747823498616,-3239.25,0.00033698,5]
[361813049,1747823498625,-420.0,0.00033698,5]
[361813050,1747823498636,-4626.37,0.00033698,5]
[361813051,1747823498646,-420.0,0.00033698,5]
[361813052,1747823498656,-1377.38,0.00033698,5]
[361813053,1747823498666,-613.45,0.00033698,5]
[361813054,1747823498677,-2100.46,0.00033698,5]
[361813055,1747823498687,-232873.01,0.00033698,5]
[361813056,1747823498698,-420.0,0.00033698,5]
[361813057,1747823498708,-420.0,0.00033698,5]
[361813058,1747823498719,-814.19,0.00033698,5]
[361813059,1747823498729,-2870.6,0.00033698,5]
[361813060,1747823498739,-420.0,0.00033698,5]
[361813061,1747823498751,-420.0,0.00033698,5]
[361813062,1747823498761,-544.44,0.00033698,5]
[361813063,1747823498773,-2582.79,0.00033698,5]
[361813064,1747823498783,-1455.85,0.00033698,5]
[361813065,1747823498793,-3817.8,0.00033698,5]
[361813066,1747823498803,-1140.2,0.00033698,5]
[361813067,1747823498813,-1001.8,0.00033698,5]
[361813068,1747823498823,-24741.12,0.00033698,5]
[361813069,1747823498833,-746.18,0.00033698,5]
[361813070,1747823498843,-1332.61,0.00033698,5]
[361813071,1747823498853,-847.4,0.00033698,5]
[361813072,1747823498863,-6653.58,0.00033698,5]
[361813073,1747823498872,-2208.36,0.00033698,5]
[361813074,1747823498882,-420.0,0.00033698,5]
[361813075,1747823498892,-3466.92,0.00033698,5]
[361813076,1747823498902,-2780.98,0.00033698,5]
[361813077,1747823498913,-756.27,0.00033698,5]
[361813078,1747823498923,-4377.12,0.00033698,5]
[361813079,1747823498933,-3727.2,0.00033698,5]
[361813080,1747823498943,-43430.9,0.00033698,5]
[361813081,1747823498953,-662.42,0.00033698,5]
[361813082,1747823498963,-420.0,0.00033698,5]
[361813083,1747823498973,-1355.36,0.00033698,5]
[361813084,1747823498983,-1646.2,0.00033698,5]
[361813085,1747823498992,-420.0,0.00033698,5]
[361813086,1747823499002,-692.1,0.00033698,5]
[361813087,1747823499011,-3823.68,0.00033698,5]
[361813088,1747823499021,-420.0,0.00033698,5]
[361813089,1747823499030,-1950.11,0.00033698,5]
[361813090,1747823499040,-420.0,0.00033698,5]
[361813091,1747823499050,-1929.18,0.00033698,5]
[361813092,1747823499059,-1375.19,0.00033698,5]
[361813093,1747823499069,-694.13,0.00033698,5]
[361813094,1747823499079,-27430.46,0.00033698,5]
[361813095,1747823499088,-2620.97,0.00033698,5]
[361813096,1747823499098,-420.0,0.00033698,5]
[361813097,1747823499107,-1035.87,0.00033698,5]
[361813098,1747823499505,-3873.45,0.00033698,5]
[361813099,1747823499516,-8392.23,0.00033698,5]
[361813100,1747823499526,-420.0,0.00033698,5]
[361813101,1747823499536,-420.0,0.00033698,5]
[361813102,1747823499547,-831.34,0.00033698,5]
[361813103,1747823499557,-683.8,0.00033698,5]
[361813104,1747823499567,-420.0,0.00033698,5]
[361813105,1747823499577,-648.18,0.00033698,5]
[361813106,1747823499586,-420.0,0.00033698,5]
[361813107,1747823499596,-420.0,0.00033698,5]
[361813108,1747823499605,-333.94,0.00033698,5]
[361813109,1747823499615,-2236.59,0.00033698,5]
[361813110,1747823499626,-862.9,0.00033698,5]
[361813111,1747823499636,-2431.99,0.00033698,5]
[361813112,1747823499645,-2055.72,0.00033698,5]
[361813113,1747823499655,-30819.65,0.00033698,5]
[361813114,1747823499664,-426.36,0.00033698,5]
[361813115,1747823499675,-420.0,0.00033698,5]
[361813116,1747823499684,-420.0,0.00033698,5]
[361813117,1747823499694,-3529.5,0.00033698,5]
[361813118,1747823499704,-420.0,0.00033698,5]
[361813119,1747823499713,-420.0,0.00033698,5]
[361813120,1747823499723,-507.94,0.00033698,5]
[361813121,1747823499732,-7158.91,0.00033698,5]
[361813122,1747823499743,-1372.96,0.00033698,5]
[361813123,1747823499752,-11263.62,0.00033698,5]
[361813124,1747823499762,-1395.97,0.00033698,5]
[361813125,1747823499772,-10218.82,0.00033698,5]
[361813126,1747823499782,-420.0,0.00033698,5]
[361813127,1747823499792,-11955.57,0.00033698,5]
[361813128,1747823499802,-420.0,0.00033698,5]
[361813129,1747823499813,-903.34,0.00033698,5]
[361813130,1747823499823,-4237.43,0.00033698,5]
[361813131,1747823499834,-1156.02,0.00033698,5]
[361813132,1747823499845,-1250.1,0.00033698,5]
[361813133,1747823499855,-420.0,0.00033698,5]
[361813134,1747823499865,-1940.56,0.00033698,5]
[361813135,1747823499877,-1535.0,0.00033698,5]
[361813136,1747823499887,-2611.65,0.00033698,5]
[361813137,1747823499897,-2088.87,0.00033698,5]
[361813138,1747823499909,-420.0,0.00033698,5]
[361813139,1747823499918,-604.9,0.00033698,5]
[361813140,1747823499929,-436.47,0.00033698,5]
[361813141,1747823499938,-482.10994672,0.00033698,5]
[361813142,1747823499949,-424.65680776,0.00033698,5]
[361813143,1747823499960,-512.59,0.00033698,5]
[361813144,1747823499972,-3994.4,0.00033698,5]
[361813145,1747823499983,-4967.59,0.00033698,5]
[361813146,1747823499993,-420.0,0.00033698,5]
[361813147,1747823500003,-420.0,0.00033698,5]
[361813148,1747823500013,-997.3,0.00033698,5]
[361813149,1747823500022,-420.0,0.00033698,5]
[361813150,1747823500031,-6358.26,0.00033698,5]
[361813151,1747823500041,-2461.55,0.00033698,5]
[361813152,1747823500050,-3960.15,0.00033698,5]
[361813153,1747823500061,-420.0,0.00033698,5]
[361813154,1747823500071,-2650.09,0.00033698,5]
[361813155,1747823500082,-1029.17,0.00033698,5]
[361813156,1747823500091,-655.48,0.00033698,5]
[361813157,1747823500103,-2763.51,0.00033698,5]
[361813158,1747823500113,-3823.46,0.00033698,5]
[361813159,1747823500123,-420.0,0.00033698,5]
[361813160,1747823500133,-420.0,0.00033698,5]
[361813161,1747823500142,-420.0,0.00033698,5]
[361813162,1747823500152,-420.0,0.00033698,5]
[361813163,1747823500162,-2138.94,0.00033698,5]
[361813164,1747823500171,-420.0,0.00033698,5]
[361813165,1747823500181,-3514.65,0.00033698,5]
[361813166,1747823500191,-578.47,0.00033698,5]
[361813167,1747823500201,-1778.66,0.00033698,5]
[361813168,1747823500210,-420.0,0.00033698,5]
[361813169,1747823500220,-4923.96,0.00033698,5]
[361813170,1747823500230,-7467.95,0.00033698,5]
[361813171,1747823500241,-420.0,0.00033698,5]
[361813172,1747823500252,-420.87,0.00033698,5]
[361813173,1747823500262,-420.0,0.00033698,5]
[361813174,1747823500272,-1388.95,0.00033698,5]
[361813175,1747823500282,-1642.25,0.00033698,5]
[361813176,1747823500292,-15894.82,0.00033698,5]
[361813177,1747823500303,-7928.56,0.00033698,5]
[361813178,1747823500312,-3648.84,0.00033698,5]
[361813179,1747823500323,-535.54,0.00033698,5]
[361813180,1747823500333,-420.0,0.00033698,5]
[361813181,1747823500343,-18415.06,0.00033698,5]
[361813182,1747823500353,-420.0,0.00033698,5]
[361813183,1747823500363,-2111.71,0.00033698,5]
[361813184,1747823500378,-584.64,0.00033698,5]
[361813185,1747823500388,-2534.37,0.00033698,5]
[361813186,1747823500398,-1096.3,0.00033698,5]
[361813187,1747823500408,-420.0,0.00033698,5]
[361813188,1747823500419,-420.0,0.00033698,5]
[361813189,1747823500429,-382.84289018,0.00033698,5]
[361813190,1747823500439,-2727.38,0.00033698,5]
[361813191,1747823500452,-481.82,0.00033698,5]
[361813192,1747823500463,-4064.18,0.00033698,5]
[361813193,1747823500474,-1605.11,0.00033698,5]
[361813194,1747823500484,-2791.01,0.00033698,5]
[361813195,1747823500494,-420.0,0.00033698,5]
[361813196,1747823500504,-388.07087041,0.00033698,5]
[361813197,1747823500513,-583.63,0.00033698,5]
[361813198,1747823500523,-3277.38,0.00033698,5]
[361813199,1747823500533,-1946.19,0.00033698,5]
[361813200,1747823500543,-420.0,0.00033698,5]
[361813201,1747823500554,-4162.95,0.00033698,5]
[361813202,1747823500564,-486.64,0.00033698,5]
[361813203,1747823500574,-1793.09,0.00033698,5]
[361813204,1747823500584,-2365.3,0.00033698,5]
[361813205,1747823500594,-5030.39,0.00033698,5]
[361813206,1747823500603,-853.5,0.00033698,5]
[361813207,1747823500613,-420.0,0.00033698,5]
[361813208,1747823500623,-420.0,0.00033698,5]
[361813209,1747823500633,-420.0,0.00033698,5]
[361813210,1747823500643,-1065.78,0.00033698,5]
[361813211,1747823500654,-420.0,0.00033698,5]
[361813212,1747823500664,-5351.26,0.00033698,5]
[361813213,1747823500674,-8618.58,0.00033698,5]
[361813214,1747823500686,-420.0,0.00033698,5]
[361813215,1747823500696,-3564.21,0.00033698,5]
[361813216,1747823500706,-1488.03,0.00033698,5]
[361813217,1747823500716,-4366.01,0.00033698,5]
[361813218,1747823500726,-1284.33,0.00033698,5]
[361813219,1747823500735,-5387.66,0.00033698,5]
[361813220,1747823500745,-420.0,0.00033698,5]
[361813221,1747823500754,-420.0,0.00033698,5]
[361813222,1747823500764,-643.95,0.00033698,5]
[361813223,1747823500775,-11304.41,0.00033698,5]
[361813224,1747823500784,-420.0,0.00033698,5]
[361813225,1747823500794,-441.74,0.00033698,5]
[361813226,1747823500805,-163.15365927,0.00033698,5]
[361813227,1747823500814,-751.7,0.00033698,5]
[361813228,1747823500824,-873.4,0.00033698,5]
[361813229,1747823500834,-420.0,0.00033698,5]
[361813230,1747823500843,-1096.95,0.00033698,5]
[361813231,1747823500853,-781.82,0.00033698,5]
[361813232,1747823500866,-420.0,0.00033698,5]
[361813233,1747823500876,-871.43,0.00033698,5]
[361813234,1747823500886,-5264.38,0.00033698,5]
[361813235,1747823500895,-420.0,0.00033698,5]
[361813236,1747823500905,-420.0,0.00033698,5]
[361813237,1747823500915,-420.0,0.00033698,5]
[361813238,1747823500924,-778.01,0.00033698,5]
[361813239,1747823500935,-3424.15,0.00033698,5]
[361813240,1747823500944,-6336.25,0.00033698,5]
[361813241,1747823500954,-420.0,0.00033698,5]
[361813242,1747823500963,-575.11,0.00033698,5]
[361813243,1747823500973,-2227.33,0.00033698,5]
[361813244,1747823500983,-469.12,0.00033698,5]
[361813245,1747823500992,-2778.38,0.00033698,5]
[361813246,1747823501002,-2282.35,0.00033698,5]
[361813247,1747823501012,-420.0,0.00033698,5]
[361813248,1747823501021,-420.0,0.00033698,5]
[361813249,1747823501031,-420.0,0.00033698,5]
[361813250,1747823501040,-420.0,0.00033698,5]
[361813251,1747823501050,-2508.06,0.00033698,5]
[361813252,1747823501059,-477.54,0.00033698,5]
[361813253,1747823501069,-420.0,0.00033698,5]
[361813254,1747823501078,-45711.39,0.00033698,5]
[361813255,1747823501088,-1438.01,0.00033698,5]
[361813256,1747823501097,-420.0,0.00033698,5]
[361813257,1747823501107,-420.0,0.00033698,5]
[361813258,1747823501116,-492.73,0.00033698,5]
[361813259,1747823501125,-2994.99,0.00033698,5]
[361813260,1747823501134,-2847.74,0.00033698,5]
[361813261,1747823501144,-845.16,0.00033698,5]
[361813262,1747823501155,-420.0,0.00033698,5]
[361813263,1747823501165,-908.75,0.00033698,5]
[361813264,1747823501174,-7033.02,0.00033698,5]
[361813265,1747823501183,-420.0,0.00033698,5]
[361813266,1747823501193,-20631.06,0.00033698,5]
[361813267,1747823501202,-420.0,0.00033698,5]
[361813268,1747823501211,-1653.01,0.00033698,5]
[361813269,1747823501221,-420.0,0.00033698,5]
[361813270,1747823501231,-420.0,0.00033698,5]
[361813271,1747823501240,-440.6,0.00033698,5]
[361813272,1747823501250,-480.69,0.00033698,5]
[361813273,1747823501260,-420.0,0.00033698,5]
[361813274,1747823501269,-1811.64,0.00033698,5]
[361813275,1747823501279,-420.0,0.00033698,5]
[361813276,1747823501290,-1620.28,0.00033698,5]
[361813277,1747823501299,-1675.59,0.00033698,5]
[361813278,1747823501309,-1341.01,0.00033698,5]
[361813279,1747823501318,-2039.96,0.00033698,5]
[361813280,1747823501330,-1650.39,0.00033698,5]
[361813281,1747823501342,-2331.07,0.00033698,5]
[361813282,1747823501353,-659.87,0.00033698,5]
[361813283,1747823501363,-1130.47,0.00033698,5]
[361813284,1747823501375,-8529.77,0.00033698,5]
[361813285,1747823501385,-1170.52,0.00033698,5]
[361813286,1747823501394,-420.0,0.00033698,5]
[361813287,1747823501404,-1019.14,0.00033698,5]
[361813288,1747823501414,-13852.49,0.00033698,5]
[361813289,1747823501423,-594.46,0.00033698,5]
[361813290,1747823501434,-420.0,0.00033698,5]
[361813291,1747823501444,-420.0,0.00033698,5]
[361813292,1747823501456,-528.88,0.00033698,5]
[361813293,1747823501467,-420.0,0.00033698,5]
[361813294,1747823501476,-729.81,0.00033698,5]
[361813295,1747823501486,-6448.31,0.00033698,5]
[361813296,1747823501498,-1260.39,0.00033698,5]
[361813297,1747823501508,-157.265004,0.00033698,5]
[361813298,1747823501517,-4031.81,0.00033698,5]
[361813299,1747823501527,-1826.19,0.00033698,5]
[361813300,1747823501536,-15980.3,0.00033698,2]
[361813301,1747823501548,-569.82,0.00033698,5]
[361813302,1747823501557,-1991.55,0.00033698,5]
[361813303,1747823501567,-420.0,0.00033698,5]
[361813304,1747823501576,-420.0,0.00033698,5]
[361813305,1747823501586,-711.84,0.00033698,5]
[361813306,1747823501595,-1316.77,0.00033698,5]
[361813307,1747823501605,-1559.3,0.00033698,5]
[361813308,1747823501614,-932.88,0.00033698,5]
[361813309,1747823501624,-420.0,0.00033698,5]
[361813310,1747823501634,-1828.91,0.00033698,5]
[361813311,1747823501644,-1672.61,0.00033698,5]
[361813312,1747823501654,-420.0,0.00033698,5]
[361813313,1747823501664,-420.0,0.00033698,5]
[361813314,1747823501674,-6643.48,0.00033698,5]
[361813315,1747823501685,-420.0,0.00033698,5]
[361813316,1747823501694,-5987.12,0.00033698,5]
[361813317,1747823501704,-420.0,0.00033698,5]
[361813318,1747823501714,-4970.74,0.00033698,5]
[361813319,1747823501723,-420.0,0.00033698,5]
[361813320,1747823501733,-420.0,0.00033698,5]
[361813321,1747823501744,-908.99,0.00033698,5]
[361813322,1747823501754,-420.0,0.00033698,5]
[361813323,1747823501763,-1754.62,0.00033698,5]
[361813324,1747823501773,-636.17,0.00033698,5]
[361813325,1747823501783,-907.69,0.00033698,5]
[361813326,1747823501793,-420.0,0.00033698,5]
[361813327,1747823501803,-434.27,0.00033698,5]
[361813328,1747823501812,-420.0,0.00033698,5]
[361813329,1747823501822,-14282.24,0.00033698,5]
[361813330,1747823501832,-420.0,0.00033698,5]
[361813331,1747823501843,-1727.02,0.00033698,5]
[361813332,1747823501853,-2354.7,0.00033698,5]
[361813333,1747823501864,-2934.17,0.00033698,5]
[361813334,1747823501875,-420.0,0.00033698,5]
[361813335,1747823501884,-2098.09,0.00033698,5]
[361813336,1747823501894,-2370.12,0.00033698,5]
[361813337,1747823501903,-635.77,0.00033698,5]
[361813338,1747823501913,-1608.41,0.00033698,5]
[361813339,1747823501923,-2448.57,0.00033698,5]
[361813340,1747823502067,-565.39,0.00033698,5]
[361813341,1747823502077,-420.0,0.00033698,5]
[361813342,1747823502087,-420.0,0.00033698,5]
[361813343,1747823502098,-832.67,0.00033698,5]
[361813344,1747823502107,-2132.27,0.00033698,5]
[361813345,1747823502117,-420.0,0.00033698,5]
[361813346,1747823502128,-1444.81,0.00033698,5]
[361813347,1747823502138,-1244.04,0.00033698,5]
[361813348,1747823502149,-674.57,0.00033698,5]
[361813349,1747823502158,-4167.33,0.00033698,5]
[361813350,1747823502168,-14461.5,0.00033698,5]
[361813351,1747823502177,-5215.67,0.00033698,5]
[361813352,1747823502186,-888.13,0.00033698,5]
[361813353,1747823502195,-271.7,0.00033698,5]
[361813354,1747823502205,-420.0,0.00033698,5]
[361813355,1747823502214,-207938.64,0.00033698,5]
[361813356,1747823502223,-548.09,0.00033698,5]
[361813357,1747823502233,-420.0,0.00033698,5]
[361813358,1747823502241,-420.0,0.00033698,5]
[361813359,1747823502251,-2319.06,0.00033698,5]
[361813360,1747823502260,-3257.11,0.00033698,5]
[361813361,1747823502270,-5582.21,0.00033698,5]
[361813362,1747823502279,-1507.21,0.00033698,5]
[361813363,1747823502289,-420.0,0.00033698,5]
[361813364,1747823502299,-1493.55,0.00033698,5]
[361813365,1747823502309,-1088.44,0.00033698,5]
[361813366,1747823502318,-2557.88,0.00033698,5]
[361813367,1747823502328,-697.67,0.00033698,5]
[361813368,1747823502337,-2873.2,0.00033698,5]
[361813369,1747823502346,-420.0,0.00033698,5]
[361813370,1747823502356,-420.0,0.00033698,5]
[361813371,1747823502370,-480.01,0.00033698,5]
[361813372,1747823502379,-2282.96,0.00033698,5]
[361813373,1747823502388,-1657.0,0.00033698,5]